fUST/lending_fUST_20241230
["ID","MTS","AMOUNT","RATE_DAILY","PERIOD"]
[347068281,1735489840102,-500.0,9.455e-05,2]
[347068283,1735489840112,-500.0,9.455e-05,2]
[347068285,1735489840121,-500.0,9.455e-05,2]
[347068287,1735489840131,-500.0,9.455e-05,2]
[347068289,1735489840140,-500.0,9.455e-05,2]
[347068291,1735489840149,-500.0,9.455e-05,2]
[347068293,1735489840159,-500.0,9.455e-05,2]
[347068295,1735489840168,-500.0,9.455e-05,2]
[347068297,1735489840178,-500.0,9.455e-05,2]
[347068299,1735489840187,-500.0,9.455e-05,2]
[347068301,1735489840196,-500.0,9.455e-05,2]
[347068303,1735489840205,-500.0,9.455e-05,2]
[347068305,1735489840215,-500.0,9.455e-05,2]
[347068307,1735489840224,-500.0,9.455e-05,2]
[347068309,1735489840234,-500.0,9.455e-05,2]
[347068311,1735489840244,-500.0,9.455e-05,2]
[347068313,1735489840254,-500.0,9.455e-05,2]
[347068315,1735489840263,-500.0,9.455e-05,2]
[347068317,1735489840272,-500.0,9.455e-05,2]
[347068319,1735489840282,-500.0,9.455e-05,2]
[347068321,1735489840291,-500.0,9.455e-05,2]
[347068323,1735489840302,-544.86,9.455e-05,2]
[347068325,1735489840312,-500.0,9.455e-05,2]
[347068327,1735489840321,-500.0,9.456e-05,2]
[347068329,1735489840331,-503.12171205,9.456e-05,2]
[347068331,1735489840341,-637.88,9.456e-05,2]
[347068332,1735489840350,-339.02577399,9.456e-05,2]
[347068335,1735489840360,-457.48628643,9.456e-05,2]
[347068337,1735489840369,-164.59097817,9.456e-05,2]
[347068339,1735489840378,-500.0,9.456e-05,2]
[347068341,1735489840388,-500.0,9.456e-05,2]
[347068342,1735489840397,-500.0,9.456e-05,2]
[347068344,1735489840406,-511.53205255,9.456e-05,2]
[347068346,1735489840415,-500.0,9.456e-05,2]
[347068348,1735489840425,-239.78521782,9.456e-05,2]
[347068350,1735489840434,-500.0,9.456e-05,2]
[347068352,1735489840444,-500.0,9.456e-05,2]
[347068354,1735489840454,-500.0,9.456e-05,2]
[347068356,1735489840464,-500.0,9.456e-05,2]
[347068358,1735489840473,-500.0,9.456e-05,2]
[347068360,1735489840482,-500.0,9.456e-05,2]
[347068362,1735489840493,-500.0,9.456e-05,2]
[347068364,1735489840503,-177.48,9.456e-05,2]
[347068367,1735489840513,-500.0,9.456e-05,2]
[347068370,1735489840522,-500.0,9.456e-05,2]
[347068373,1735489840531,-500.0,9.456e-05,2]
[347068376,1735489840541,-160.76815806,9.456e-05,2]
[347068378,1735489840550,-500.0,9.456e-05,2]
[347068380,1735489840560,-500.0,9.456e-05,2]
[347068382,1735489840569,-500.0,9.456e-05,2]
[347068384,1735489840578,-500.0,9.456e-05,2]
[347068386,1735489840588,-500.0,9.456e-05,2]
[347068388,1735489840600,-500.0,9.456e-05,2]
[347068390,1735489840609,-500.0,9.456e-05,2]
[347068392,1735489840619,-500.000001,9.456e-05,2]
[347068394,1735489840628,-500.0,9.457e-05,2]
[347068396,1735489840639,-500.0,9.457e-05,2]
[347068398,1735489840648,-258.76,9.457e-05,2]
[347068400,1735489840658,-500.0,9.457e-05,2]
[347068402,1735489840667,-339.4980726,9.457e-05,2]
[347068405,1735489840677,-500.0,9.457e-05,2]
[347068406,1735489840686,-500.0,9.457e-05,2]
[347068408,1735489840696,-500.0,9.457e-05,2]
[347068411,1735489840705,-500.0,9.457e-05,2]
[347068412,1735489840715,-592.78,9.457e-05,2]
[347068414,1735489840725,-500.0,9.457e-05,2]
[347068416,1735489840735,-528.83,9.457e-05,2]
[347068419,1735489840749,-500.0,9.457e-05,2]
[347068420,1735489840758,-500.0,9.457e-05,2]
[347068423,1735489840768,-500.0,9.457e-05,2]
[347068425,1735489840778,-500.0,9.457e-05,2]
[347068426,1735489840788,-500.0,9.457e-05,2]
[347068428,1735489840798,-500.0,9.457e-05,2]
[347068430,1735489840807,-451.32566996,9.457e-05,2]
[347068433,1735489840818,-500.0,9.457e-05,2]
[347068435,1735489840827,-500.0,9.457e-05,2]
[347068437,1735489840836,-500.0,9.457e-05,2]
[347068439,1735489840845,-533.01859053,9.457e-05,2]
[347068441,1735489840855,-502.88550786,9.458e-05,2]
[347068443,1735489840864,-500.0,9.458e-05,2]
[347068445,1735489840873,-500.0,9.458e-05,2]
[347068447,1735489840883,-500.0,9.458e-05,2]
[347068448,1735489840891,-500.0,9.458e-05,2]
[347068451,1735489840901,-500.0,9.458e-05,2]
[347068453,1735489840911,-500.0,9.458e-05,2]
[347068455,1735489840920,-500.0,9.458e-05,2]
[347068457,1735489840929,-500.0,9.458e-05,2]
[347068459,1735489840938,-500.0,9.458e-05,2]
[347068460,1735489840948,-500.0,9.458e-05,2]
[347068462,1735489840957,-500.0,9.458e-05,2]
[347068464,1735489840966,-266.17,9.458e-05,2]
[347068467,1735489840976,-500.0,9.458e-05,2]
[347068468,1735489840984,-500.0,9.458e-05,2]
[347068470,1735489840994,-500.0,9.458e-05,2]
[347068472,1735489841003,-500.0,9.458e-05,2]
[347068475,1735489841012,-473.91238707,9.458e-05,2]
[347068476,1735489841021,-500.0,9.458e-05,2]
[347068479,1735489841031,-500.0,9.458e-05,2]
[347068480,1735489841040,-500.0,9.458e-05,2]
[347068483,1735489841050,-500.0,9.458e-05,2]
[347068484,1735489841059,-500.0,9.458e-05,2]
[347068486,1735489841069,-500.0,9.46e-05,2]
[347068488,1735489841078,-7640.77159283,9.631e-05,2]
[347068490,1735489841087,-500.0,9.728e-05,2]
[347068493,1735489841097,-500.0,9.729e-05,2]
[347068495,1735489841106,-500.0,9.729e-05,2]
[347068497,1735489841116,-500.0,9.729e-05,2]
[347068499,1735489841125,-570.79,9.729e-05,2]
[347068500,1735489841134,-419.84919586,9.729e-05,2]
[347068502,1735489841143,-500.0,9.729e-05,2]
[347068504,1735489841152,-500.0,9.729e-05,2]
[347068506,1735489841161,-500.0,9.729e-05,2]
[347068508,1735489841170,-500.0,9.729e-05,2]
[347068510,1735489841179,-201.42609481,9.729e-05,2]
[347068512,1735489841189,-500.0,9.729e-05,2]
[347068514,1735489841198,-500.0,9.729e-05,2]
[347068516,1735489841207,-500.0,9.729e-05,2]
[347068517,1735489841217,-500.0,9.729e-05,2]
[347068518,1735489841225,-500.0,9.729e-05,2]
[347068519,1735489841235,-500.0,9.729e-05,2]
[347068520,1735489841246,-500.0,9.729e-05,2]
[347068521,1735489841255,-500.0,9.729e-05,2]
[347068522,1735489841264,-201.71,9.729e-05,2]
[347068523,1735489841273,-500.0,9.729e-05,2]
[347068524,1735489841283,-500.0,9.729e-05,2]
[347068525,1735489841292,-500.0,9.729e-05,2]
[347068526,1735489841301,-500.0,9.729e-05,2]
[347068527,1735489841310,-500.0,9.729e-05,2]
[347068528,1735489841319,-500.0,9.729e-05,2]
[347068529,1735489841329,-500.0,9.729e-05,2]
[347068530,1735489841338,-500.0,9.73e-05,2]
[347068531,1735489841348,-644.5,9.73e-05,2]
[347068532,1735489841357,-500.0,9.73e-05,2]
[347068533,1735489841366,-500.0,9.73e-05,2]
[347068534,1735489841375,-500.0,9.73e-05,2]
[347068535,1735489841385,-642.13337257,9.73e-05,2]
[347068536,1735489841394,-624.6,9.73e-05,2]
[347068537,1735489841403,-500.0,9.73e-05,2]
[347068538,1735489841412,-500.0,9.73e-05,2]
[347068539,1735489841421,-500.0,9.73e-05,2]
[347068540,1735489841431,-500.0,9.73e-05,2]
[347068541,1735489841440,-500.0,9.731e-05,2]
[347068543,1735489841449,-500.0,9.731e-05,2]
[347068545,1735489841458,-369.51,9.731e-05,2]
[347068547,1735489841467,-500.0,9.731e-05,2]
[347068549,1735489841476,-500.0,9.731e-05,2]
[347068551,1735489841486,-500.0,9.731e-05,2]
[347068553,1735489841495,-568.2,9.731e-05,2]
[347068555,1735489841505,-500.0,9.731e-05,2]
[347068557,1735489841514,-500.0,9.731e-05,2]
[347068559,1735489841523,-500.0,9.732e-05,2]
[347068561,1735489841531,-500.0,9.732e-05,2]
[347068563,1735489841542,-500.0,9.732e-05,2]
[347068565,1735489841550,-597.98,9.732e-05,2]
[347068567,1735489841560,-500.0,9.732e-05,2]
[347068569,1735489841569,-532.13377089,9.732e-05,2]
[347068571,1735489841578,-500.0,9.732e-05,2]
[347068573,1735489841588,-478.55396164,9.732e-05,2]
[347068575,1735489841597,-500.0,9.732e-05,2]
[347068577,1735489841607,-500.0,9.732e-05,2]
[347068579,1735489841616,-500.0,9.734e-05,2]
[347068581,1735489841625,-500.0,0.00010003,2]
[347068583,1735489841634,-500.0,0.00010003,2]
[347068585,1735489841643,-500.0,0.00010003,2]
[347068587,1735489841652,-359.69,0.00010003,2]
[347068589,1735489841661,-500.0,0.00010003,2]
[347068591,1735489841671,-500.0,0.00010003,2]
[347068593,1735489841681,-500.0,0.00010003,2]
[347068594,1735489841691,-500.0,0.00010003,2]
[347068596,1735489841700,-500.0,0.00010003,2]
[347068599,1735489841710,-500.0,0.00010003,2]
[347068600,1735489841719,-500.0,0.00010003,2]
[347068602,1735489841728,-500.0,0.00010003,2]
[347068604,1735489841742,-500.0,0.00010003,2]
[347068607,1735489841751,-500.0,0.00010003,2]
[347068609,1735489841760,-500.0,0.00010003,2]
[347068611,1735489841769,-500.0,0.00010003,2]
[347068612,1735489841779,-500.0,0.00010004,2]
[347068615,1735489841788,-554.43,0.00010005,2]
[347068617,1735489841797,-500.0,0.00010006,2]
[347068619,1735489841806,-500.0,0.00010006,2]
[347068620,1735489841814,-500.0,0.00010006,2]
[347068622,1735489841824,-500.0,0.00010008,2]
[347068625,1735489841834,-420.0,0.00010098,2]
[347068627,1735489841843,-634.39,0.00010277,2]
[347068629,1735489841852,-516.67,0.00010277,2]
[347068631,1735489841861,-500.0,0.00010277,2]
[347068633,1735489841871,-500.0,0.00010277,2]
[347068644,1735489841960,-569.41,0.00010277,2]
[347068646,1735489841969,-186.49,0.00010277,2]
[347068648,1735489841979,-500.0,0.00010277,2]
[347068650,1735489841989,-500.0,0.00010277,2]
[347068652,1735489841999,-500.0,0.0001028,2]
[347068654,1735489842009,-500.0,0.0001028,2]
[347068656,1735489842018,-500.0,0.00010282,2]
[347068658,1735489842027,-243.91,0.00010551,2]
[347068660,1735489842036,-500.0,0.00010551,2]
[347068662,1735489842046,-352.99,0.00010551,2]
[347068664,1735489842055,-500.0,0.00010554,2]
[347068666,1735489842064,-500.0,0.00010556,2]
[347068668,1735489842073,-500.0,0.00010825,2]
[347068670,1735489842083,-209.18197592,0.00010828,2]
[347068672,1735489842092,-500.0,0.0001083,2]
[347068674,1735489842101,-500.0,0.00011099,2]
[347068676,1735489842110,-500.0,0.00011104,2]
[347068678,1735489842120,-500.0,0.00011373,2]
[347068680,1735489842128,-500.0,0.00011378,2]
[347068682,1735489842137,-500.0,0.00011647,2]
[347068684,1735489842146,-500.0,0.00011652,2]
[347068686,1735489842156,-500.0,0.00011921,2]
[347068688,1735489842165,-500.0,0.00011926,2]
[347068690,1735489842175,-500.0,0.00012195,2]
[347068692,1735489842184,-500.0,0.000122,2]
[347068694,1735489842193,-519.2053,0.00012469,2]
[347068696,1735489842202,-500.0,0.00012474,2]
[347068698,1735489842211,-500.0,0.00012748,2]
[347068700,1735489842220,-394.0,0.0001287,2]
[347068702,1735489842229,-1091.79,0.00013,2]
[347068704,1735489842239,-500.0,0.00013022,2]
[347068706,1735489842249,-368.10911891,0.00013296,2]
[347068708,1735489842258,-500.0,0.00013699,2]
[347068710,1735489842267,-500.0,0.00013699,2]
[347068712,1735489842277,-500.0,0.00013699,2]
[347068714,1735489842285,-500.0,0.00013699,2]
[347068716,1735489842294,-500.0,0.00013699,2]
[347068718,1735489842303,-500.0,0.00013699,2]
[347068720,1735489842312,-500.0,0.00013699,2]
[347068722,1735489842321,-500.0,0.00013699,2]
[347068724,1735489842330,-500.0,0.00013699,2]
[347068726,1735489842339,-500.0,0.00013699,2]
[347068728,1735489842348,-232.60803786,0.00013699,2]
[347068730,1735489842357,-500.0,0.00013699,2]
[347068732,1735489842366,-500.0,0.00013699,2]
[347068734,1735489842375,-500.0,0.00013699,2]
[347068736,1735489842384,-500.0,0.00013699,2]
[347068739,1735489842393,-500.0,0.00013699,2]
[347068740,1735489842403,-500.0,0.00013699,2]
[347068743,1735489842412,-500.0,0.00013699,2]
[347068745,1735489842421,-500.0,0.00013699,2]
[347068747,1735489842431,-500.0,0.00013699,2]
[347068749,1735489842440,-500.0,0.00013699,2]
[347068751,1735489842450,-344.20824761,0.000138,2]
[347068752,1735489842460,-400.0,0.00013973,2]
[347068754,1735489842469,-387.612,0.0001439,2]
[347068756,1735489842479,-2900.0,0.0001571,2]
[347068758,1735489842488,-394.0,0.0001587,2]
[347068761,1735489842497,-500.0,0.00016438,2]
[347068762,1735489842505,-500.0,0.00016438,2]
[347068764,1735489842514,-500.0,0.00016438,2]
[347068767,1735489842524,-416.18000496,0.00016438,2]
[347068769,1735489842534,-598.43564805,0.00016438,2]
[347068771,1735489842542,-500.0,0.00016438,2]
[347068772,1735489842552,-3275.38,0.000177,7]
[347068774,1735489842561,-1200.0,0.00017797,2]
[347068776,1735489842570,-151.0,0.00017797,2]
[347068778,1735489842579,-500.0,0.00017797,2]
[347068780,1735489842588,-5164.75756255,0.00018,2]
[347068782,1735489842597,-400.24510912,0.00018,2]
[347068784,1735489842607,-394.0,0.0001887,2]
[347068786,1735489842616,-1026.98614515,0.000189,2]
[347068788,1735489842625,-164.984708,0.00019178,2]
[347068790,1735489842635,-8687.83573699,0.00019483,2]
[347068792,1735489842644,-670.91,0.0001976,2]
[347068795,1735489842653,-5009.96774121,0.00019878,2]
[347068808,1735489842720,-495.09666607,9.18e-05,2]
[347068811,1735489842729,-3677.86799578,0.00019878,2]
[347068814,1735489842741,-704.9107508,0.00019918,2]
[347068818,1735489842750,-2763.30266209,0.0002,30]
[347068822,1735489842760,-8687.83573699,0.00020051,2]
[347068824,1735489842769,-1013.99973462,0.0002013,2]
[347068827,1735489842778,-500.0,0.00020264,2]
[347068831,1735489842788,-607.34,0.00020264,2]
[347068836,1735489842798,-499.0,0.00020273,2]
[347068840,1735489842807,-8687.835737,0.00020418,2]
[347068843,1735489842817,-400.0,0.00020447,2]
[347068845,1735489842829,-641.62234858,0.0002047,2]
[347068847,1735489842838,-158.726957,0.00020521,2]
[347068849,1735489842848,-1000.0,0.00020577,2]
[347068851,1735489842858,-232.2219622,0.00020592,2]
[347068853,1735489842868,-1000.0,0.00020694,2]
[347068855,1735489842879,-15581.94539191,0.00020733,2]
[347068857,1735489842889,-158.726957,0.0002074,2]
[347068859,1735489842899,-60704.00912364,0.000208,30]
[347068861,1735489842909,-2000.0,0.000208,2]
[347068863,1735489842918,-277.78751439,0.000208,2]
[347068865,1735489842929,-500.0,0.000208,2]
[347068867,1735489842939,-500.0,0.000208,2]
[347068869,1735489842949,-500.0,0.000208,2]
[347068871,1735489842959,-151.03984256,0.000208,2]
[347068873,1735489842968,-150.21,0.000208,2]
[347068875,1735489842978,-150.21,0.000208,2]
[347068877,1735489842987,-500.0,0.000208,2]
[347068879,1735489842996,-500.0,0.000208,2]
[347068881,1735489843005,-150.21,0.000208,2]
[347068883,1735489843014,-500.0,0.000208,2]
[347068885,1735489843023,-500.0,0.000208,2]
[347068887,1735489843033,-150.21,0.000208,2]
[347068889,1735489843042,-500.0,0.000208,2]
[347068891,1735489843052,-203.37098178,0.000208,2]
[347068893,1735489843061,-159.35861912,0.000208,2]
[347068895,1735489843070,-500.0,0.000208,2]
[347068897,1735489843080,-150.21,0.000208,2]
[347068899,1735489843089,-500.0,0.000208,2]
[347068901,1735489843098,-150.21,0.000208,2]
[347068903,1735489843107,-10000.0,0.00020813,60]
[347068905,1735489843117,-3357.7,0.00020813,60]
[347068907,1735489843126,-3337.22383563,0.00020832,2]
[347068909,1735489843135,-55210.19574781,0.00020832,2]
[347068911,1735489843144,-497212.43493601,0.00020833,10]
[347068913,1735489843156,-33175.61199124,0.00020833,10]
[347068915,1735489843167,-6601.00114522,0.00020833,10]
[347068919,1735489843190,-1692.71713024,0.00020833,10]
[347068921,1735489843201,-8502.4534221,0.00020833,10]
[347068925,1735489843232,-73320.40131369,0.00020833,10]
[347068928,1735489843245,-37868.43530879,0.00020833,10]
[347068934,1735489843292,-36093.34631379,0.00020833,10]
[347068947,1735489843405,-4070.47115779,0.00020833,10]
[347069223,1735489846171,-1503.14143,0.00020833,10]
[347069226,1735489846184,-3351.0,0.00020833,10]
[347069228,1735489846195,-945.5,0.00020833,10]
[347069233,1735489846237,-853.75941912,0.00020833,10]
[347069236,1735489846249,-24672.87240769,0.00020833,10]
[347069238,1735489846261,-1257.0263378,0.00020833,10]
[347069243,1735489846296,-480834.86783437,0.00020833,10]
[347069245,1735489846308,-14041.7416734,0.00020833,10]
[347069247,1735489846319,-22201.28886477,0.00020833,10]
[347069249,1735489846329,-33766.17219147,0.00020833,10]
[347069251,1735489846341,-18677.60000001,0.00020833,10]
[347080371,1735490640028,225.85904886,8.997e-05,2]
[347080395,1735490850611,476.84093582,8.999e-05,2]
[347080397,1735490924096,428.0,0.00025,120]
[347080447,1735491032547,-500.0,9.18e-05,2]
[347080449,1735491032556,-475.65495,9.181e-05,2]
[347080451,1735491032565,-500.0,9.183e-05,2]
[347080453,1735491032574,-500.0,9.183e-05,2]
[347080454,1735491032584,-500.0,9.184e-05,2]
[347080456,1735491032593,-500.0,9.457e-05,2]
[347080458,1735491032602,-500.0,9.458e-05,2]
[347080460,1735491032611,-500.0,9.731e-05,2]
[347080462,1735491032620,-500.0,9.732e-05,2]
[347080464,1735491032629,-1192.51408473,9.905e-05,2]
[347080466,1735491032638,-572.81832363,0.0001,2]
[347080468,1735491032647,-500.0,0.00010005,2]
[347080470,1735491032656,-500.0,0.00010006,2]
[347080472,1735491032665,-288.7379508,0.00010279,2]
[347080474,1735491032674,-500.0,0.0001028,2]
[347080476,1735491032683,-500.0,0.00010554,2]
[347080478,1735491032692,-500.0,0.00010828,2]
[347080480,1735491032700,-500.0,0.00011102,2]
[347080482,1735491032709,-500.0,0.00011376,2]
[347080484,1735491032718,-500.0,0.0001165,2]
[347080486,1735491032728,-1192.51408471,0.00011889,2]
[347080488,1735491032737,-500.0,0.00011924,2]
[347080489,1735491032746,-500.0,0.00012198,2]
[347080491,1735491032755,-615.44757712,0.00012472,2]
[347080494,1735491032765,-677.1,0.00013,2]
[347080496,1735491032774,-572.81832363,0.00013,2]
[347080498,1735491032782,-153.0,0.00013699,2]
[347080500,1735491032791,-153.0,0.00013699,2]
[347080502,1735491032800,-153.0,0.00013699,2]
[347080504,1735491032810,-153.0,0.00013699,2]
[347080506,1735491032819,-153.0,0.00013699,2]
[347080508,1735491032829,-227.99,0.00013753,2]
[347080509,1735491032838,-150.0,0.00013753,2]
[347080511,1735491032847,-370.47485062,0.00013753,2]
[347080514,1735491032859,-23.52514938,0.00013753,2]
[347080516,1735491032871,-225.85904886,0.00013838,2]
[347080518,1735491032881,-466.63908839,0.00013838,2]
[347080520,1735491032890,-283.86471337,0.00013838,2]
[347080524,1735491032917,-216.13528663,0.00013838,2]
[347080526,1735491032926,-564.35229358,0.00013873,2]
[347080928,1735491038475,-151.601,0.00013753,2]
[347080929,1735491038484,-500.0,0.00013835,2]
[347080931,1735491038494,-636.95644865,0.00013835,2]
[347080933,1735491038503,-628.16179113,0.00013873,2]
[347080935,1735491038513,-400.0,0.00013973,2]
[347080937,1735491038522,-500.0,0.00014112,2]
[347080939,1735491038531,-500.0,0.00014386,2]
[347080941,1735491038540,-500.0,0.0001466,2]
[347080943,1735491038549,-500.0,0.00014934,2]
[347080945,1735491038558,-572.81832363,0.00015,2]
[347080947,1735491038567,-500.0,0.00015208,2]
[347080949,1735491038576,-500.0,0.00015482,2]
[347080951,1735491038586,-310.09,0.00015486,2]
[347080953,1735491038596,-500.0,0.00015756,2]
[347080954,1735491038605,-500.0,0.0001603,2]
[347080955,1735491038615,-500.0,0.00016304,2]
[347080956,1735491038624,-212.90888944,0.00016438,2]
[347080957,1735491038633,-500.0,0.00016578,2]
[347080958,1735491038643,-394.0,0.00016753,2]
[347080959,1735491038652,-500.0,0.00016852,2]
[347080960,1735491038661,-554.36335274,0.00017,2]
[347080961,1735491038670,-500.0,0.00017126,2]
[347080962,1735491038680,-500.0,0.000174,2]
[347080963,1735491038690,-500.0,0.00017674,2]
[347080964,1735491038699,-2031.32,0.000178,7]
[347080965,1735491038708,-500.0,0.00017948,2]
[347080966,1735491038717,-500.0,0.00017999,2]
[347080967,1735491038726,-193.37267419,0.00017999,2]
[347080968,1735491038735,-500.0,0.00017999,2]
[347080969,1735491038744,-5164.75756255,0.00018,2]
[347080970,1735491038756,-187.44616569,0.00018222,2]
[347080971,1735491038771,-312.55383431,0.00018222,2]
[347080972,1735491038783,-178.02263852,0.00018273,2]
[347080973,1735491038795,-500.0,0.00018496,2]
[347080974,1735491038807,-500.0,0.0001877,2]
[347080975,1735491038818,-684.6574301,0.000189,2]
[347080976,1735491038830,-473.59,0.00019044,2]
[347080977,1735491038840,-394.0,0.00019753,2]
[347080978,1735491038850,-642.965,0.0001979,2]
[347080979,1735491038860,-24382.28003179,0.0002,2]
[347080980,1735491038872,-400.0,0.00020447,2]
[347080981,1735491038886,-158.726957,0.00020521,2]
[347080982,1735491038897,-152.0,0.00020715,2]
[347080983,1735491038908,-254.49490882,0.00020732,2]
[347080984,1735491038919,-5164.75756255,0.00020733,3]
[347080985,1735491038930,-5164.75756255,0.00020733,3]
[347080986,1735491038941,-5164.75756255,0.00020733,3]
[347080987,1735491038953,-2000.0,0.000208,2]
[347080988,1735491038965,-500.0,0.000208,2]
[347080989,1735491038976,-158.726957,0.00020827,2]
[347080990,1735491038986,-500.0,0.00020833,2]
[347080991,1735491038997,-500.0,0.00020833,2]
[347080992,1735491039007,-165.67319425,0.00020833,2]
[347080993,1735491039018,-150.2,0.00020833,2]
[347080994,1735491039029,-154.75200445,0.00020833,2]
[347080995,1735491039041,-500.0,0.00020833,2]
[347080996,1735491039051,-500.0,0.00020833,2]
[347080997,1735491039063,-150.2,0.00020833,2]
[347080998,1735491039074,-300.19072879,0.00020833,2]
[347080999,1735491039085,-300.18,0.00020833,2]
[347081000,1735491039097,-150.2,0.00020833,2]
[347081001,1735491039110,-150.2,0.00020833,2]
[347081002,1735491039120,-150.2,0.00020833,2]
[347081003,1735491039131,-185.03726509,0.00020833,2]
[347081004,1735491039142,-500.0,0.00020833,2]
[347081005,1735491039154,-500.0,0.00020833,2]
[347081006,1735491039164,-500.0,0.00020833,2]
[347081007,1735491039176,-150.2,0.00020833,2]
[347081008,1735491039188,-500.0,0.00020833,2]
[347081009,1735491039198,-500.0,0.00020833,2]
[347081010,1735491039209,-150.2,0.00020833,2]
[347081011,1735491039219,-151.0,0.00020835,2]
[347081012,1735491039229,-151.0,0.00020835,2]
[347081013,1735491039240,-151.0,0.00020835,2]
[347081014,1735491039249,-151.0,0.00020835,2]
[347081015,1735491039259,-255.887656,0.00020835,2]
[347081017,1735491039271,-151.0,0.00020846,2]
[347081018,1735491039281,-151.0,0.00020846,2]
[347081020,1735491039291,-151.0,0.00020846,2]
[347081022,1735491039303,-151.0,0.00020846,2]
[347081024,1735491039312,-151.0,0.00020846,2]
[347081026,1735491039323,-151.0,0.00020846,2]
[347081028,1735491039334,-151.0,0.00020846,2]
[347081030,1735491039344,-151.0,0.00020846,2]
[347081032,1735491039355,-151.0,0.00020846,2]
[347081035,1735491039366,-151.0,0.00020846,2]
[347081037,1735491039378,-151.0,0.00020846,2]
[347081039,1735491039389,-153.720525,0.00020846,2]
[347081041,1735491039400,-151.0,0.00020846,2]
[347081044,1735491039412,-151.0,0.00020846,2]
[347081046,1735491039424,-151.0,0.00020846,2]
[347081048,1735491039434,-151.0,0.00020846,2]
[347081050,1735491039446,-151.0,0.00020846,2]
[347081053,1735491039457,-151.0,0.00020846,2]
[347081055,1735491039468,-151.0,0.00020846,2]
[347081057,1735491039477,-151.0,0.00020846,2]
[347081059,1735491039488,-179.376951,0.00020846,2]
[347081061,1735491039497,-151.0,0.00020846,2]
[347081063,1735491039506,-151.0,0.00020846,2]
[347081065,1735491039516,-151.0,0.00020846,2]
[347081067,1735491039525,-151.0,0.00020846,2]
[347081069,1735491039535,-151.0,0.00020846,2]
[347081071,1735491039545,-151.0,0.00020846,2]
[347081073,1735491039555,-151.0,0.00020846,2]
[347081075,1735491039566,-151.0,0.00020846,2]
[347081078,1735491039578,-151.0,0.00020846,2]
[347081080,1735491039589,-151.0,0.00020846,2]
[347081082,1735491039600,-151.0,0.00020846,2]
[347081084,1735491039611,-151.0,0.00020846,2]
[347081086,1735491039622,-151.0,0.00020846,2]
[347081088,1735491039631,-151.0,0.00020846,2]
[347081091,1735491039641,-151.0,0.00020846,2]
[347081093,1735491039651,-151.0,0.00020846,2]
[347081095,1735491039661,-271.071582,0.00020846,2]
[347081097,1735491039672,-151.0,0.00020846,2]
[347081099,1735491039681,-151.0,0.00020846,2]
[347081101,1735491039692,-105.99401749,0.00020846,2]
[347081104,1735491039710,-45.00598251,0.00020846,2]
[347081106,1735491039720,-151.0,0.00020846,2]
[347081108,1735491039731,-89.43382235,0.00020846,2]
[347081189,1735491040424,-61.56617765,0.00020846,2]
[347081191,1735491040434,-151.0,0.00020846,2]
[347081193,1735491040445,-235.890431,0.00020846,2]
[347081195,1735491040456,-314.697398,0.00020846,2]
[347081197,1735491040466,-314.697398,0.00020846,2]
[347081199,1735491040477,-314.697398,0.00020846,2]
[347081201,1735491040487,-314.697398,0.00020846,2]
[347081204,1735491040498,-314.697398,0.00020846,2]
[347081206,1735491040508,-314.697398,0.00020846,2]